Cogmind - Beta 14 @@@ ROGUE MODE // 2024.09.26 @ 17:15:15 Player: star Result: Destroyed by SH-QL4(R) with Subdweller Laser Performance ------------- Evolutions (0) 0 Regions Visited (2) 400 Robots Destroyed (18) 90 Value Destroyed (566) 566 Prototype IDs (0) 0 Alien Tech Used (0) 0 Bonus (0) 0 TOTAL SCORE: 1056 Bonus ------- None Cogmind --------- Core Integrity 0/250 Matter 236/300 Energy 200/200 System Corruption 0% Temperature Danger (426) Movement Rolling (120) Ox1 Location -10/Subcaves Parts ------- > --- POWER (1) -------- Subdweller Power Source > --- PROPULSION (2) --- Subdweller Monowheel > --- UTILITY (2) ------ Small Storage Unit Makeshift Light Armor Plating > --- WEAPON (2) ------- Particle Gun Subdweller Beam Cannon > --- INVENTORY (8) ---- Light Ion Engine Aluminum Leg High-capacity Storage Unit Large Matter Pod (150) Terrain Scanner Terrain Scanner Small Laser Grenade Launcher Peak State ------------ > --- POWER ------------ Subdweller Power Source > --- PROPULSION ------- Wheel Subdweller Monowheel > --- UTILITY ---------- Small Storage Unit Makeshift Light Armor Plating > --- WEAPON ----------- Particle Gun Subdweller Beam Cannon > --- INVENTORY -------- Light Ion Engine Aluminum Leg High-capacity Storage Unit Large Matter Pod Terrain Scanner Terrain Scanner Small Laser Grenade Launcher [Rating: 14] Favorites ----------- Power Ion Engine Engine Ion Engine Power Core Light Nuclear Core Propulsion Wheel Leg Aluminum Leg Wheel Wheel Utility Small Storage Unit Storage Small Storage Unit Protection Light Armor Plating Weapon EM Pulse Gun Energy Gun EM Pulse Gun Energy Cannon Subdweller Beam Cannon Ballistic Gun Light Assault Rifle Launcher Grenade Launcher Build | -11 -10 -10 ------- Run | Yrd Mat Sub Slots Evolved . | . . . Power . | . . . Propulsion . | . . . Utility . | . . . Weapon . | . . . Parts Attached 23 | 8 10 5 Power 6 | 2 3 1 Engine 5 | 2 2 1 Core 1 | . 1 . Reactor . | . . . Propulsion 6 | 2 2 2 Treads . | . . . Leg 2 | . 2 . Wheel 4 | 2 . 2 Hover . | . . . Flight . | . . . Utility 3 | 1 1 1 Device . | . . . Storage 1 | 1 . . Processor . | . . . Hackware . | . . . Protection 2 | . 1 1 Artifact . | . . . Weapon 8 | 3 4 1 Energy Gun 4 | 2 2 . Energy Cannon 1 | . . 1 Ballistic Gun 2 | 1 1 . Ballistic Cannon . | . . . Launcher 1 | . 1 . Special Weapon . | . . . Impact Weapon . | . . . Slashing Weapon . | . . . Piercing Weapon . | . . . Special Melee Weapon . | . . . Unidentified Prototypes . | . . . Parts Lost 6 | . 5 1 Power 1 | . 1 . Propulsion 2 | . 1 1 Utility 1 | . 1 . Weapon 2 | . 2 . Highest Loss Streak 2 | . 2 1 To Critical Strikes . | . . . Average Slot Usage (%) 86 | . 86 89 Engine 13 | . 13 14 Leg 2 | . 2 5 Wheel 24 | . 24 20 Storage 14 | . 14 14 Protection 4 | . 4 6 Energy Gun 19 | . 20 14 Energy Cannon 1 | . . 9 Ballistic Gun 4 | . 4 4 Launcher 1 | . 1 . Peak Build Rating 14 | 6 9 14 Average Rating 6 | 4 6 10 On Entrance 4 | . 6 7 Naked Turns . | . . . Heaviest Build 25 | 14 17 25 Greatest Support 30 | 26 26 30 Greatest Overweight (x) 2 | . 1 2 Average Overweight (x) . | . . . Largest Inventory Capacity 8 | 8 8 8 Average Capacity 7 | 7 8 8 Most Carried 8 | 1 8 8 Average Carried 6 | . 6 8 Final Capacity 8 | 8 8 8 Final Carried 8 | 1 8 8 Class Distribution -------------------- 89% | Mutant 10% | Scavenger-Mutant Dominant Class ---------------- Mutant | -10/Materials Scavenger-Mutant | -10/Subcaves Resources | -11 -10 -10 ----------- Run | Yrd Mat Sub Matter Collected 638 | 169 456 13 Remotely . | . . . Salvage Created 612 | . 547 65 Parts 38 | . 34 4 Haulers Intercepted 2 | . 2 . Recyclers Shooed 1 | . 1 . Parts Field Recycled . | . . . Retrieved Matter . | . . . Parts Self-Destructed . | . . . Prevented . | . . . Kills | -11 -10 -10 ------- Run | Yrd Mat Sub Combat Hostiles Destroyed 13 | . 11 2 Guns 10 | . 8 2 AOE 3 | . 3 . Classes Destroyed 6 | . 5 1 Worker 1 | . 1 . Builder 1 | . 1 . Hauler 2 | . 2 . Mechanic 1 | . 1 . Grunt 11 | . 11 . Subdweller 2 | . . 2 Best Kill Streak 3 | . 3 1 Combat Bots Only 2 | . 2 1 Max Kills in Single Turn 1 | . 1 1 Gunslinging . | . . . Exploded 1 | . 1 . Melee . | . . . Uniques/NPCs Destroyed . | . . . Combat | -11 -10 -10 -------- Run | Yrd Mat Sub Hostile Shots Fired 96 | . 76 20 Missed 31 | . 27 4 Damage Taken 964 | . 617 347 Core 254 | . 126 128 Absorbed by Shields . | . . . Core Remaining (%) 100 | 100 . . Volleys Fired 85 | . 72 13 Largest 2 | . 2 2 Hottest 145 | . 85 145 Shots Fired 160 | . 136 24 Gun 144 | . 128 16 Cannon 8 | . . 8 Launcher 8 | . 8 . Special . | . . . Kinetic 43 | . 40 3 Thermal 61 | . 40 21 Explosive 8 | . 8 . Electromagnetic 48 | . 48 . Robot Hit Streak 10 | . 10 7 Robot Miss Streak 3 | . 3 2 Penetration Max . | . . . Secondary Targets . | . . . Shots Hit Robots 101 | . 83 18 Core Hits 38 | . 32 6 Critical Kills . | . . . Critical Parts Destroyed . | . . . Critical Strikes 3 | . 3 . Burn 3 | . 3 . Melee Attacks . | . . . Impact . | . . . Slashing . | . . . Piercing . | . . . Sneak Attacks . | . . . Combat Hostiles . | . . . Follow-up Attacks . | . . . Damage Inflicted 1730 | . 1396 334 Guns 1139 | . 967 172 Cannons 162 | . . 162 Explosions 429 | . 429 . Melee . | . . . Ramming . | . . . Kinetic 190 | . 183 7 Thermal 688 | . 361 327 Explosive 395 | . 395 . Electromagnetic 457 | . 457 . Impact . | . . . Slashing . | . . . Piercing . | . . . Highest Corruption . | . . . Average Corruption . | . . . Corruption Purged . | . . . Corruption Blocked . | . . . Overload Shots . | . . . Overflow Damage 32 | . 29 3 Projectiles 3 | . . 3 Explosions 29 | . 29 . Melee . | . . . Knockbacks . | . . . Impact . | . . . Kinetic . | . . . Secondary . | . . . Self-Inflicted Damage 23 | . 23 . Shots 3 | . 3 . Rammed . | . . . Targets Rammed . | . . . Kicked . | . . . Crushed . | . . . Highest Temperature 423 | . 234 423 Average Temperature 86 | . 68 205 Received Heat Transfer 710 | . 333 377 Effects 1 | . . 1 Matter Decay 1 | . . 1 Siege Activations . | . . . Robots Corrupted . | . . . Combat Hostiles . | . . . Parts Fried 3 | . 3 . Impact Corruptions . | . . . Robots Melted . | . . . Combat Hostiles . | . . . Parts Melted . | . . . Heat Transferred 1681 | . 1052 629 Parts Sabotaged . | . . . Parts Stolen . | . . . Parts Stripped . | . . . Power Chain Reactions 1 | . 1 . Alert | -11 -10 -10 ------- Run | Yrd Mat Sub Peak Influence 291 | . 291 . Initial . | . . . Average 120 | . 126 . Maximum Alert Level 1 | . 1 . Low Security (%) 70 | 100 68 . Level 1 29 | . 31 . Level 2 . | . . . Level 3 . | . . . Level 4 . | . . . Level 5 . | . . . High Security . | . . . Max Security . | . . . Squads Dispatched 2 | . 2 . Investigation 1 | . 1 . Extermination . | . . . Reinforcement 1 | . 1 . Assault . | . . . Garrison . | . . . Intercept . | . . . Searches Triggered . | . . . Construction Impeded . | . . . Haulers Reinforced . | . . . Active Scanning Responses . | . . . Cargo Convoy Interrupts . | . . . Stealth | -11 -10 -10 --------- Run | Yrd Mat Sub Distress Signals 4 | . 4 . Communications Jammed . | . . . Distress Signals . | . . . Times Spotted 27 | . 24 3 Peak Tracking Total 7 | . 7 2 Tactical Retreats 4 | . 4 . Traps | -11 -10 -10 ------- Run | Yrd Mat Sub Traps Triggered . | . . . Indirectly . | . . . Trap Hack Attempts . | . . . Triggered . | . . . Disarmed . | . . . Reprogrammed . | . . . Reused . | . . . Traps Extracted . | . . . Installed . | . . . Triggered . | . . . Machines | -11 -10 -10 ---------- Run | Yrd Mat Sub Machines Disabled 5 | . 5 . Max in Single Turn 1 | . 1 . Machines Repaired . | . . . Machines Dismantled . | . . . Machines Sabotaged . | . . . Overloaded Fab Kills . | . . . Hacking | -11 -10 -10 --------- Run | Yrd Mat Sub Machines Accessed . | . . . Terminals . | . . . Fabricators . | . . . Repair Stations . | . . . Recycling Units . | . . . Scanalyzers . | . . . Garrison Access . | . . . Total Hacks . | . . . Successful . | . . . Failed . | . . . Catastrophic . | . . . Database Lockouts . | . . . Manual . | . . . Terminals . | . . . Fabricators . | . . . Repair Stations . | . . . Recycling Units . | . . . Scanalyzers . | . . . Garrison Access . | . . . Terminal Hacks . | . . . Fabricator Hacks . | . . . Repair Station Hacks . | . . . Recycling Unit Hacks . | . . . Scanalyzer . | . . . Garrison Access Hacks . | . . . Unauthorized Hacks . | . . . Terminals . | . . . Fabricators . | . . . Repair Stations . | . . . Recycling Units . | . . . Scanalyzers . | . . . Garrison Access . | . . . Data Cores Recovered . | . . . Used . | . . . Hacking Detections . | . . . Full Trace Events . | . . . Feedback Events . | . . . Feedback Blocked . | . . . Robot Schematics Acquired . | . . . Robots Built . | . . . Authchips . | . . . Time . | . . . Total Robot Build Rating . | . . . Part Schematics Acquired . | . . . Parts Built . | . . . Authchips . | . . . Time . | . . . Total Part Build Rating . | . . . Parts Repaired . | . . . Time . | . . . Parts Recycled . | . . . Recycled Matter . | . . . Retrieved Matter . | . . . Retrieved Components . | . . . Parts Scanalyzed . | . . . Part Schematics Acquired . | . . . Parts Damaged . | . . . Bothacking | -11 -10 -10 ------------ Run | Yrd Mat Sub Used RIF Installer . | . . . Robots Hacked . | . . . Non-combat . | . . . Combat . | . . . Robot Hacks Applied . | . . . Relay Couplers Released . | . . . Fabnet Peak Effective % . | . . . Robots Rewired . | . . . Allies Hacked . | . . . Hacks Repelled . | . . . Allies | -11 -10 -10 -------- Run | Yrd Mat Sub Total Allies . | . . . Largest Group . | . . . Highest-Rated Group . | . . . Highest-Rated Ally . | . . . Total Orders . | . . . Ally Attacks . | . . . Total Damage . | . . . Kills . | . . . Allies Corrupted . | . . . Allies Melted . | . . . Intel | -11 -10 -10 ------- Run | Yrd Mat Sub Robot Analysis Total . | . . . Derelict Logs Recovered 1 | . . 1 Drone Launches . | . . . Drone Recoveries . | . . . Exploration | -11 -10 -10 ------------- Run | Yrd Mat Sub Turns Passed 1332 | 56 1089 187 Spaces Moved 668 | 49 498 121 Core 7 | 7 . . Treads . | . . . Legs 42 | . 27 15 Wheels 619 | 42 471 106 Hover . | . . . Flight . | . . . Fastest Speed 50 | 50 90 95 Average Speed 97 | 83 95 107 Slowest Speed 190 | 90 190 190 Overloaded Moves . | . . . Propulsion Burnouts . | . . . Robots Hopped . | . . . Cave-ins Triggered . | . . . Exploration Rate (%) 28 | 3 72 11 Regions Visited 2 Branch Regions 1 Pre-discovered Areas . | . . . Known Exits Taken . | . . . Unknown Exits Taken 2 | 1 1 . Scrap Searched . | . . . Spaces Dug . | . . . Terrain Destroyed 37 | . 36 1 Melee . | . . . Projectile 1 | . . 1 AOE 36 | . 36 . Terrain Rammed . | . . . Walls Destroyed . | . . . Machines Disabled . | . . . Actions | -11 -10 -10 --------- Run | Yrd Mat Sub Total 1191 | 59 979 153 Wait 407 | 3 392 12 Move 666 | 48 497 121 Hop . | . . . Pick Up 8 | . 8 . Fast Attach 9 | 6 2 1 Attach 3 | . 3 . Detach . | . . . Swap 11 | 2 5 4 Drop 2 | . . 2 Fire 85 | . 72 13 Melee . | . . . Ram . | . . . Kick . | . . . Crush . | . . . Escape Stasis . | . . . Rewire . | . . . Trap . | . . . Miscellaneous . | . . . Route ------- -11/Scrapyard -10/Materials (discovered 4 exits: [*Mat x3] / [*Sub]) -10/Subcaves (discovered 1 exit: [*Mat]) History --------- Turn | Location | Event 4 | -11/Scrapyard | Discovered new exit (range 15) 57 | -11/Scrapyard | Entered Materials 152 | -10/Materials | Discovered new exit (range 10) 204 | -10/Materials | Discovered new exit (range 7) 305 | -10/Materials | Build established: Mutant 662 | -10/Materials | Discovered new exit (range 16) 994 | -10/Materials | Core integrity fell below 50% 1122 | -10/Materials | Discovered new exit (range 3) 1146 | -10/Materials | Entered Subcaves 1152 | -10/Subcaves | Learned Materials emergency access door positions 1275 | -10/Subcaves | Discovered new exit (range 11) 1318 | -10/Subcaves | Core integrity fell below 20% 1333 | -10/Subcaves | Destroyed by SH-QL4(R) with Subdweller Laser Last Messages --------------- GOAL=ESCAPE 01152_ Acquired derelict log, extracted data. Data stored: Materials emergency access points. 01191_ Critical hit (Meltdown: +290). 01194_ UL-0XY(R) destroyed. 01198_ Subatomizers dissect the Sub. Monowheel. 01199_ Acquired 3 matter. 01201_ Acquired Sub. Beam Cannon. 01203_ Acquired 10 matter. 01206_ Dropped Ion Engine. 01213_ Subatomizers dissect the Lgt. Assault Rifle. 01213_ Dropped Wheel. 01214_ Acquired Wheel. 01247_ Acquired Mak. Light Armor Plating. 01275_ EXIT=FOUND 01305_ Wheel destroyed. 01308_ Destroyed Sub. Power Source. 01311_ JS-ROW(R) destroyed. 01326_ Overheating: Matter decay (-29). 01329_ Sub. Beam Cannon shoots sparks and powers down. Map ----- +----------------------------------------------------+ | ?????????????????????????????????????????????????? | | ?????????????????????????????????????????????????? | | ?????????????????????????????????????????????????? | | ?????????????????????????????????????????????????? | | ?????????????????????????????????????????????????? | | ?????????????????????????????????????????????????? | | ?????????????????????????????????????????????????? | | ?????????????????????????????????????????????????? | | ?????????????????????????????????????????????????? | | ?????????????????????????????????????????????????? | | ?????????????????????????????????????????????????? | | ?????????????????????????????????????????????????? | | ?????????????????????????????????????????????????? | | ?????????????????????????????????????????????????? | | ?????????????????????????????????????????????????? | | ??????#????##????????????????????????????????????? | | ?????##" ## ???#####???????????????????????????? | | ?????#"" ### #?####??????????????????????? | | ??????#" ### ##?????????????????????? | | ???????# ## ##????????????????????? | | ???????### " """ #######??????????????? | | ?????????# < ;# # ##?????????????? | | ????????#" "" """"## #?????????????? | | ?????? " "" ##"### ##????????##### | | ??????# """"" ""#######%R ###% ##????#### # | | ?????? """" ""#????#@ ###?## ###### # | | ?????? """" ""????# %#????# % | | ??????? ??""" "?????####????# | | ??????????? "?????????????## ## ### | | ???????????? ???????????????########?## ### | | ????????????# ?????????????????????????# #?# | | ????????????##### ?????????????????????????# #?# | | ????????????????? ?????????????????????????# ##?# | | ????????????????? ?????????????????????????## #??# | | ????????????????????????????????????????????###??# | | ?????????????????????????????????????????????????? | | ?????????????????????????????????????????????????? | | ?????????????????????????????????????????????????? | | ?????????????????????????????????????????????????? | | ?????????????????????????????????????????????????? | | ?????????????????????????????????????????????????? | | ?????????????????????????????????????????????????? | | ?????????????????????????????????????????????????? | | ?????????????????????????????????????????????????? | | ?????????????????????????????????????????????????? | | ?????????????????????????????????????????????????? | | ?????????????????????????????????????????????????? | | ?????????????????????????????????????????????????? | | ?????????????????????????????????????????????????? | | ?????????????????????????????????????????????????? | +----------------------------------------------------+ Best States ------------- Heat Dissipation 25 Energy Generation 15 Energy Capacity 250 Matter Stores 300 Matter Capacity 300 Sight Range 16 Terrain Scan Density 10 Armor Coverage 150 Evasion (%) 44 Item Schematics ----------------- None Robot Schematics ------------------ None Fabricated ------------ Nothing Alien Tech Used ----------------- None Achievements -------------- None Challenges ------------ None Game ------ Seed DisruptionCoordinationGun Manual? 0 Play Time 00:09:09 Cumulative 101.6 hours Start 2024.09.26 @ 17:01:19 End 2024.09.26 @ 17:15:15 Sessions 1 Manual Loads 0 Difficulty Rogue Special Mode None Game No. 175 Rogue 175 Adventurer 0 Explorer 0 Win Type - Total 0 Types 0/0/0/0/0/0/0/0/0 Lore% 49 Gallery% 52 Achievement% 41 Wizard Run 0 Options --------- Layout 0 ASCII 0 Keyboard 1 Movement Numpad Keybinds 0 Fullscreen 2 Font 18/SmallcapsGlow Map View 76x50 Zoom Use 0% Tactical HUD 1 Map Filters NONE Filters NONE Steam 1 RUN: bbb185f3-c983-412e-8624-df6970261b71